[Event "Early-Titled-Tuesday-Blitz-April-16-2024"]
[Site "Chess.com"]
[Date "2024.04.16"]
[Round "8"]
[White "TERMINATOR_PC"]
[Black "Donskov_AN"]
[Result "1-0"]
[WhiteElo "2616"]
[BlackElo "2402"]
[TimeControl "180+1"]
[EndTime "9:29:27 PDT"]
[Termination "TERMINATOR_PC won by checkmate"]

1. e4 {[%clk 0:02:41.6]} 1... c5 {[%clk 0:02:59.8]} 2. Nf3 {[%clk 0:02:32]} 2...
Nc6 {[%clk 0:02:59.9]} 3. d4 {[%clk 0:02:26.4]} 3... cxd4 {[%clk 0:03:00.8]} 4.
Nxd4 {[%clk 0:02:27.3]} 4... Nf6 {[%clk 0:03:00.6]} 5. Nc3 {[%clk 0:02:23.7]}
5... d6 {[%clk 0:03:00.6]} 6. Bg5 {[%clk 0:02:20.5]} 6... Bd7 {[%clk 0:02:59.9]}
7. Qd3 {[%clk 0:02:19.1]} 7... a6 {[%clk 0:02:58.1]} 8. O-O-O {[%clk 0:02:16.2]}
8... e6 {[%clk 0:02:57.1]} 9. Kb1 {[%clk 0:01:59.4]} 9... Nxd4 {[%clk
0:02:57.3]} 10. Qxd4 {[%clk 0:01:59.4]} 10... Bc6 {[%clk 0:02:57.8]} 11. f3
{[%clk 0:01:57.2]} 11... Be7 {[%clk 0:02:57.9]} 12. f4 {[%clk 0:01:53.6]} 12...
O-O {[%clk 0:02:57.8]} 13. Bd3 {[%clk 0:01:51.1]} 13... b5 {[%clk 0:02:50.4]}
14. Rhe1 {[%clk 0:01:44.7]} 14... Qc7 {[%clk 0:02:50.1]} 15. e5 {[%clk
0:01:35.6]} 15... dxe5 {[%clk 0:02:49.7]} 16. fxe5 {[%clk 0:01:36]} 16... Nd5
{[%clk 0:02:48.7]} 17. Nxd5 {[%clk 0:01:33.8]} 17... Bxd5 {[%clk 0:02:48.8]} 18.
Qh4 {[%clk 0:01:33.1]} 18... h6 {[%clk 0:02:30.7]} 19. Bxe7 {[%clk 0:01:31.5]}
19... Rfc8 {[%clk 0:02:30.5]} 20. Bd6 {[%clk 0:01:29.5]} 20... Qa5 {[%clk
0:02:30.3]} 21. b3 {[%clk 0:01:29.9]} 21... Qc3 {[%clk 0:02:29.4]} 22. Qb4
{[%clk 0:01:25.5]} 22... Qc6 {[%clk 0:02:28.8]} 23. Re3 {[%clk 0:01:23.8]} 23...
Ra7 {[%clk 0:02:15.4]} 24. Rg3 {[%clk 0:01:17.4]} 24... a5 {[%clk 0:01:57]} 25.
Qf4 {[%clk 0:01:05.9]} 25... f5 {[%clk 0:01:22.4]} 26. exf6 {[%clk 0:01:01.8]}
26... a4 {[%clk 0:01:22.5]} 27. fxg7 {[%clk 0:00:54.1]} 27... axb3 {[%clk
0:01:17.8]} 28. Qf8+ {[%clk 0:00:53.1]} 28... Rxf8 {[%clk 0:01:04.1]} 29.
gxf8=Q# {[%clk 0:00:54]} 1-0

[Event "Early-Titled-Tuesday-Blitz-April-16-2024"]
[Site "Chess.com"]
[Date "2024.04.16"]
[Round "8"]
[White "RedFirePanda"]
[Black "Yushko_Olga"]
[Result "1-0"]
[WhiteElo "2481"]
[BlackElo "2263"]
[TimeControl "180+1"]
[EndTime "9:29:28 PDT"]
[Termination "RedFirePanda won by resignation"]

1. d4 {[%clk 0:03:00.9]} 1... Nf6 {[%clk 0:02:58.1]} 2. Bf4 {[%clk 0:02:58.5]}
2... e6 {[%clk 0:02:58.1]} 3. c3 {[%clk 0:02:53.6]} 3... d5 {[%clk 0:02:57.3]}
4. e3 {[%clk 0:02:52.4]} 4... c5 {[%clk 0:02:56.8]} 5. Nd2 {[%clk 0:02:51.3]}
5... Nc6 {[%clk 0:02:56.6]} 6. Ngf3 {[%clk 0:02:47.7]} 6... Bd6 {[%clk
0:02:56.1]} 7. Bg3 {[%clk 0:02:47.7]} 7... O-O {[%clk 0:02:55.9]} 8. Bd3 {[%clk
0:02:45.8]} 8... Re8 {[%clk 0:02:53.9]} 9. O-O {[%clk 0:02:44.7]} 9... cxd4
{[%clk 0:02:52.2]} 10. exd4 {[%clk 0:02:43.3]} 10... e5 {[%clk 0:02:48.5]} 11.
dxe5 {[%clk 0:02:42.5]} 11... Nxe5 {[%clk 0:02:48.6]} 12. Nxe5 {[%clk
0:02:42.2]} 12... Bxe5 {[%clk 0:02:48.6]} 13. Qb3 {[%clk 0:02:11.8]} 13... b6
{[%clk 0:02:37.9]} 14. Rfe1 {[%clk 0:02:06.7]} 14... Bxg3 {[%clk 0:02:37.3]} 15.
hxg3 {[%clk 0:02:07.6]} 15... Be6 {[%clk 0:02:31.9]} 16. Qc2 {[%clk 0:01:59.7]}
16... Rc8 {[%clk 0:02:28.8]} 17. Nf3 {[%clk 0:01:58.5]} 17... Bg4 {[%clk
0:02:20.5]} 18. Nd4 {[%clk 0:01:54.4]} 18... Qd7 {[%clk 0:02:15.9]} 19. Qd2
{[%clk 0:01:41.1]} 19... Ne4 {[%clk 0:02:10.7]} 20. Qf4 {[%clk 0:01:34.7]} 20...
g5 {[%clk 0:02:02.1]} 21. Qc1 {[%clk 0:01:27.2]} 21... h6 {[%clk 0:01:50.3]} 22.
Bb5 {[%clk 0:01:21]} 22... Qd6 {[%clk 0:01:32.2]} 23. Bxe8 {[%clk 0:01:18.2]}
23... Rxe8 {[%clk 0:01:33.1]} 24. f3 {[%clk 0:01:11.2]} 24... Qxg3 {[%clk
0:01:33.1]} 25. fxe4 {[%clk 0:01:07.7]} 25... Bh3 {[%clk 0:01:24.7]} 26. Qd2
{[%clk 0:00:57.1]} 26... dxe4 {[%clk 0:01:24.5]} 27. Re3 {[%clk 0:00:53.3]}
27... Qf4 {[%clk 0:01:18.7]} 28. Rf1 {[%clk 0:00:51.6]} 1-0

[Event "Early-Titled-Tuesday-Blitz-April-16-2024"]
[Site "Chess.com"]
[Date "2024.04.16"]
[Round "8"]
[White "scarabee43"]
[Black "VD_coach"]
[Result "1-0"]
[WhiteElo "2829"]
[BlackElo "2639"]
[TimeControl "180+1"]
[EndTime "9:29:40 PDT"]
[Termination "scarabee43 won by resignation"]

1. Nf3 {[%clk 0:03:00.9]} 1... Nf6 {[%clk 0:02:56.2]} 2. c4 {[%clk 0:03:00.9]}
2... g6 {[%clk 0:02:41.2]} 3. Nc3 {[%clk 0:02:58.7]} 3... Bg7 {[%clk 0:02:41.8]}
4. d4 {[%clk 0:02:59]} 4... O-O {[%clk 0:02:41.9]} 5. Bg5 {[%clk 0:02:59]} 5...
d6 {[%clk 0:02:42]} 6. e3 {[%clk 0:02:59.6]} 6... Nbd7 {[%clk 0:02:41.8]} 7. Qc2
{[%clk 0:02:58.3]} 7... c5 {[%clk 0:02:41.9]} 8. d5 {[%clk 0:02:58.2]} 8... a6
{[%clk 0:02:30.8]} 9. a4 {[%clk 0:02:54.4]} 9... Qa5 {[%clk 0:02:29.9]} 10. Nd2
{[%clk 0:02:46.4]} 10... b5 {[%clk 0:02:28.8]} 11. cxb5 {[%clk 0:02:45.6]} 11...
axb5 {[%clk 0:02:18.6]} 12. Bxb5 {[%clk 0:02:45.3]} 12... h6 {[%clk 0:02:09.7]}
13. Bf4 {[%clk 0:02:33.7]} 13... Ba6 {[%clk 0:02:02.4]} 14. Bxa6 {[%clk
0:02:20.3]} 14... Qxa6 {[%clk 0:01:59.7]} 15. e4 {[%clk 0:02:15.6]} 15... Rfb8
{[%clk 0:01:54.3]} 16. Ra3 {[%clk 0:02:10.6]} 16... Nb6 {[%clk 0:01:30.7]} 17.
Nb5 {[%clk 0:02:05.9]} 17... Nh5 {[%clk 0:01:07]} 18. Be3 {[%clk 0:01:55.3]}
18... Nxa4 {[%clk 0:00:49.3]} 19. Nc7 {[%clk 0:01:54.6]} 19... Rxb2 {[%clk
0:00:34.8]} 20. Qd1 {[%clk 0:01:44.4]} 20... Qb7 {[%clk 0:00:23]} 21. Nxa8
{[%clk 0:01:41.3]} 21... Nc3 {[%clk 0:00:22.4]} 22. Qc1 {[%clk 0:01:34.9]} 22...
Qb5 {[%clk 0:00:18.5]} 23. Rxc3 {[%clk 0:01:33.1]} 23... Bxc3 {[%clk 0:00:18.8]}
24. Qxc3 {[%clk 0:01:33.1]} 24... Ra2 {[%clk 0:00:13.5]} 25. Nc7 {[%clk
0:01:29.9]} 25... Qb7 {[%clk 0:00:13.6]} 26. Ne8 {[%clk 0:01:28.6]} 26... f6
{[%clk 0:00:10.4]} 27. O-O {[%clk 0:01:27.7]} 1-0

[Event "Early-Titled-Tuesday-Blitz-April-16-2024"]
[Site "Chess.com"]
[Date "2024.04.16"]
[Round "8"]
[White "koncheto"]
[Black "LuisFSiles"]
[Result "0-1"]
[WhiteElo "2528"]
[BlackElo "2377"]
[TimeControl "180+1"]
[EndTime "9:29:45 PDT"]
[Termination "LuisFSiles won by checkmate"]

1. e4 {[%clk 0:02:58.1]} 1... c5 {[%clk 0:02:59.2]} 2. d4 {[%clk 0:02:56.8]}
2... cxd4 {[%clk 0:02:59.3]} 3. c3 {[%clk 0:02:57.3]} 3... Nf6 {[%clk
0:02:58.1]} 4. e5 {[%clk 0:02:54.3]} 4... Nd5 {[%clk 0:02:58]} 5. Qxd4 {[%clk
0:02:53.6]} 5... e6 {[%clk 0:02:56.2]} 6. Nf3 {[%clk 0:02:53.5]} 6... Nc6 {[%clk
0:02:55.5]} 7. Qe4 {[%clk 0:02:53.8]} 7... f5 {[%clk 0:02:55.6]} 8. exf6 {[%clk
0:02:53.3]} 8... Nxf6 {[%clk 0:02:53]} 9. Qc2 {[%clk 0:02:46.6]} 9... Bc5 {[%clk
0:02:47.6]} 10. Bd3 {[%clk 0:02:45.7]} 10... O-O {[%clk 0:02:33.7]} 11. O-O
{[%clk 0:02:44.6]} 11... d5 {[%clk 0:02:31.7]} 12. Bf4 {[%clk 0:02:43.5]} 12...
Qe8 {[%clk 0:01:47.8]} 13. Re1 {[%clk 0:02:41.8]} 13... Qh5 {[%clk 0:01:47.5]}
14. Bg3 {[%clk 0:02:35.2]} 14... Bd7 {[%clk 0:01:36.7]} 15. Nbd2 {[%clk
0:02:30.9]} 15... Rae8 {[%clk 0:01:35.3]} 16. Nb3 {[%clk 0:02:28.1]} 16... Bb6
{[%clk 0:01:35.1]} 17. Ne5 {[%clk 0:02:26.5]} 17... Nxe5 {[%clk 0:01:19]} 18.
Rxe5 {[%clk 0:02:26.4]} 18... Qh6 {[%clk 0:01:18.4]} 19. Re2 {[%clk 0:01:56.1]}
19... Ng4 {[%clk 0:01:02.5]} 20. h3 {[%clk 0:01:48]} 20... Nf6 {[%clk
0:00:53.8]} 21. Rae1 {[%clk 0:01:38.3]} 21... Nh5 {[%clk 0:00:53.4]} 22. Bd6
{[%clk 0:01:25.1]} 22... Nf4 {[%clk 0:00:41.9]} 23. Bxf8 {[%clk 0:01:14.7]}
23... Qg5 {[%clk 0:00:34]} 24. Bxh7+ {[%clk 0:01:05.2]} 24... Kxf8 {[%clk
0:00:32.9]} 25. Be4 {[%clk 0:01:04.5]} 25... dxe4 {[%clk 0:00:28]} 26. Rxe4
{[%clk 0:01:02.8]} 26... Qxg2# {[%clk 0:00:26.9]} 0-1

[Event "Early-Titled-Tuesday-Blitz-April-16-2024"]
[Site "Chess.com"]
[Date "2024.04.16"]
[Round "8"]
[White "tantaan"]
[Black "Zavgorodniy_Sergiy"]
[Result "0-1"]
[WhiteElo "2502"]
[BlackElo "2618"]
[TimeControl "180+1"]
[EndTime "9:29:46 PDT"]
[Termination "Zavgorodniy_Sergiy won on time"]

1. e4 {[%clk 0:03:00.9]} 1... c6 {[%clk 0:02:57.7]} 2. d4 {[%clk 0:03:00.4]}
2... d5 {[%clk 0:02:58.2]} 3. f3 {[%clk 0:03:00.5]} 3... dxe4 {[%clk 0:02:58.3]}
4. fxe4 {[%clk 0:03:01.4]} 4... e5 {[%clk 0:02:58.7]} 5. Nf3 {[%clk 0:03:01.2]}
5... Bg4 {[%clk 0:02:58.1]} 6. Bc4 {[%clk 0:02:59.6]} 6... Nd7 {[%clk
0:02:57.6]} 7. O-O {[%clk 0:02:58.3]} 7... Ngf6 {[%clk 0:02:54.1]} 8. c3 {[%clk
0:02:57.2]} 8... b5 {[%clk 0:02:54.1]} 9. Bb3 {[%clk 0:02:57]} 9... Bd6 {[%clk
0:02:51.6]} 10. Bg5 {[%clk 0:02:55.5]} 10... Qc7 {[%clk 0:02:51.6]} 11. Nbd2
{[%clk 0:02:55.4]} 11... O-O {[%clk 0:02:51.7]} 12. Kh1 {[%clk 0:02:53.6]} 12...
Rae8 {[%clk 0:02:51.6]} 13. Qe1 {[%clk 0:02:52.5]} 13... Bh5 {[%clk 0:02:51.5]}
14. Qh4 {[%clk 0:02:37.3]} 14... Bg6 {[%clk 0:02:51.8]} 15. Rae1 {[%clk
0:02:35.3]} 15... c5 {[%clk 0:02:51.5]} 16. d5 {[%clk 0:02:33.7]} 16... c4
{[%clk 0:02:51.5]} 17. Bc2 {[%clk 0:02:33.3]} 17... Nh5 {[%clk 0:02:47.3]} 18.
a4 {[%clk 0:02:03.6]} 18... a6 {[%clk 0:02:46.2]} 19. Qh3 {[%clk 0:01:46.3]}
19... Nc5 {[%clk 0:02:42.9]} 20. axb5 {[%clk 0:01:32.4]} 20... axb5 {[%clk
0:02:43.8]} 21. Nh4 {[%clk 0:01:31.2]} 21... Nf4 {[%clk 0:02:40.4]} 22. Bxf4
{[%clk 0:01:26.6]} 22... exf4 {[%clk 0:02:41.3]} 23. Nxg6 {[%clk 0:01:09]} 23...
fxg6 {[%clk 0:02:34.5]} 24. Nf3 {[%clk 0:01:03.8]} 24... Be5 {[%clk 0:02:33.5]}
25. Ra1 {[%clk 0:00:59.9]} 25... h6 {[%clk 0:02:28.5]} 26. Qg4 {[%clk
0:00:49.7]} 26... Kh7 {[%clk 0:02:26.5]} 27. Rfd1 {[%clk 0:00:46.8]} 27... Ra8
{[%clk 0:02:20.3]} 28. Rxa8 {[%clk 0:00:34.4]} 28... Rxa8 {[%clk 0:02:21.2]} 29.
d6 {[%clk 0:00:33.5]} 29... Bxd6 {[%clk 0:02:17.3]} 30. e5 {[%clk 0:00:33.8]}
30... Bxe5 {[%clk 0:02:08.7]} 31. Qxg6+ {[%clk 0:00:30.4]} 31... Kg8 {[%clk
0:02:09]} 32. Qh7+ {[%clk 0:00:01.9]} 32... Kf7 {[%clk 0:02:09.3]} 33. Qf5+
{[%clk 0:00:02]} 33... Bf6 {[%clk 0:02:07.8]} 34. Qg6+ {[%clk 0:00:02.2]} 34...
Kf8 {[%clk 0:02:08.3]} 35. Qh7 {[%clk 0:00:02.3]} 35... Rd8 {[%clk 0:02:05]} 36.
Re1 {[%clk 0:00:01.9]} 36... Nd3 {[%clk 0:01:58.2]} 0-1

[Event "Early-Titled-Tuesday-Blitz-April-16-2024"]
[Site "Chess.com"]
[Date "2024.04.16"]
[Round "8"]
[White "Boorchess"]
[Black "AlainBruxelles"]
[Result "0-1"]
[WhiteElo "2497"]
[BlackElo "2358"]
[TimeControl "180+1"]
[EndTime "9:29:50 PDT"]
[Termination "AlainBruxelles won on time"]

1. e4 {[%clk 0:03:00.9]} 1... c6 {[%clk 0:02:59]} 2. d4 {[%clk 0:02:56.7]} 2...
d5 {[%clk 0:02:59]} 3. exd5 {[%clk 0:02:54.9]} 3... cxd5 {[%clk 0:02:59.2]} 4.
c4 {[%clk 0:02:54.7]} 4... Nf6 {[%clk 0:02:57.6]} 5. Nc3 {[%clk 0:02:53.2]} 5...
a6 {[%clk 0:02:52]} 6. Bg5 {[%clk 0:02:50.1]} 6... e6 {[%clk 0:02:43.3]} 7. Nf3
{[%clk 0:02:47.3]} 7... Be7 {[%clk 0:02:43.3]} 8. c5 {[%clk 0:02:43.2]} 8... Nc6
{[%clk 0:02:37.7]} 9. Bd3 {[%clk 0:02:40.1]} 9... b6 {[%clk 0:02:36.7]} 10. b4
{[%clk 0:02:28.3]} 10... O-O {[%clk 0:02:29.2]} 11. a3 {[%clk 0:02:04.3]} 11...
bxc5 {[%clk 0:02:23.5]} 12. bxc5 {[%clk 0:02:03.5]} 12... h6 {[%clk 0:02:12.7]}
13. h4 {[%clk 0:01:43.8]} 13... Qa5 {[%clk 0:02:09.6]} 14. Bd2 {[%clk
0:01:43.2]} 14... Qc7 {[%clk 0:02:06.2]} 15. g4 {[%clk 0:01:37.2]} 15... e5
{[%clk 0:02:05.5]} 16. g5 {[%clk 0:01:36.5]} 16... e4 {[%clk 0:02:00.5]} 17.
gxf6 {[%clk 0:01:34.9]} 17... Bxf6 {[%clk 0:02:00.2]} 18. Nxd5 {[%clk
0:01:33.9]} 18... Qd8 {[%clk 0:01:50.5]} 19. Nxf6+ {[%clk 0:01:12.8]} 19... Qxf6
{[%clk 0:01:49.2]} 20. Bxe4 {[%clk 0:00:29.8]} 20... Re8 {[%clk 0:01:47.8]} 21.
Qe2 {[%clk 0:00:11.8]} 21... Bf5 {[%clk 0:01:46.5]} 22. Ne5 {[%clk 0:00:05.4]}
22... Nxd4 {[%clk 0:01:40.8]} 23. Ng4 {[%clk 0:00:01.1]} 23... Qg6 {[%clk
0:01:23.3]} 24. h5 {[%clk 0:00:01.1]} 24... Qe6 {[%clk 0:01:18.3]} 0-1

[Event "Early-Titled-Tuesday-Blitz-April-16-2024"]
[Site "Chess.com"]
[Date "2024.04.16"]
[Round "8"]
[White "GMCarbone"]
[Black "ljuks68"]
[Result "1-0"]
[WhiteElo "2577"]
[BlackElo "2390"]
[TimeControl "180+1"]
[EndTime "9:29:53 PDT"]
[Termination "GMCarbone won by resignation"]

1. d4 {[%clk 0:03:00.9]} 1... d5 {[%clk 0:02:59.7]} 2. c4 {[%clk 0:03:01.3]}
2... c6 {[%clk 0:02:59.8]} 3. Nf3 {[%clk 0:03:01.9]} 3... Nf6 {[%clk 0:03:00.3]}
4. e3 {[%clk 0:03:02.5]} 4... e6 {[%clk 0:03:00.4]} 5. Nc3 {[%clk 0:03:03.2]}
5... Nbd7 {[%clk 0:03:00.7]} 6. Qc2 {[%clk 0:03:03.7]} 6... Bd6 {[%clk
0:03:00.2]} 7. Bd3 {[%clk 0:03:04.2]} 7... dxc4 {[%clk 0:02:58.9]} 8. Bxc4
{[%clk 0:03:05.1]} 8... b5 {[%clk 0:02:59.1]} 9. Be2 {[%clk 0:03:05.7]} 9... Bb7
{[%clk 0:02:59.5]} 10. e4 {[%clk 0:03:06]} 10... e5 {[%clk 0:02:59]} 11. dxe5
{[%clk 0:03:06]} 11... Nxe5 {[%clk 0:02:58.7]} 12. Nd4 {[%clk 0:03:06.6]} 12...
O-O {[%clk 0:02:46]} 13. Nf5 {[%clk 0:03:06.2]} 13... Bc7 {[%clk 0:02:40.6]} 14.
Bg5 {[%clk 0:02:56.5]} 14... Ng6 {[%clk 0:02:37.6]} 15. Rd1 {[%clk 0:02:52.8]}
15... Qb8 {[%clk 0:02:26.2]} 16. Bxf6 {[%clk 0:02:36.6]} 16... gxf6 {[%clk
0:02:26.4]} 17. g3 {[%clk 0:02:26.2]} 17... Re8 {[%clk 0:02:11.2]} 18. Qd2
{[%clk 0:02:08.7]} 18... Bc8 {[%clk 0:01:36.1]} 19. Qh6 {[%clk 0:01:53.9]} 19...
Bxf5 {[%clk 0:01:35.8]} 20. exf5 {[%clk 0:01:54.4]} 20... Nf8 {[%clk 0:01:36.4]}
21. Qxf6 {[%clk 0:01:51.3]} 21... Be5 {[%clk 0:01:35.9]} 22. Qg5+ {[%clk
0:01:50]} 22... Kh8 {[%clk 0:01:35.8]} 23. Kf1 {[%clk 0:01:38.2]} 23... f6
{[%clk 0:01:28.8]} 24. Qh4 {[%clk 0:01:20.3]} 24... c5 {[%clk 0:01:12.1]} 25.
Bf3 {[%clk 0:01:19.1]} 25... b4 {[%clk 0:01:08.3]} 26. Ne4 {[%clk 0:01:14.5]}
26... Qb6 {[%clk 0:01:00.8]} 27. b3 {[%clk 0:01:06.7]} 27... Rad8 {[%clk
0:00:59.9]} 28. Kg2 {[%clk 0:01:06.3]} 28... a5 {[%clk 0:00:51.2]} 29. Qh6
{[%clk 0:00:59.5]} 29... a4 {[%clk 0:00:45.1]} 30. Bh5 {[%clk 0:00:59]} 30...
Rxd1 {[%clk 0:00:40.9]} 31. Bxe8 {[%clk 0:00:56]} 1-0

[Event "Early-Titled-Tuesday-Blitz-April-16-2024"]
[Site "Chess.com"]
[Date "2024.04.16"]
[Round "8"]
[White "Gabrielian_Artur"]
[Black "h4parah5"]
[Result "0-1"]
[WhiteElo "2805"]
[BlackElo "3011"]
[TimeControl "180+1"]
[EndTime "9:29:59 PDT"]
[Termination "h4parah5 won by resignation"]

1. e4 {[%clk 0:03:00.9]} 1... c5 {[%clk 0:02:59.7]} 2. Nf3 {[%clk 0:03:00.5]}
2... Nc6 {[%clk 0:03:00]} 3. Bb5 {[%clk 0:03:00.3]} 3... e6 {[%clk 0:03:00.2]}
4. Bxc6 {[%clk 0:03:00.1]} 4... bxc6 {[%clk 0:03:01.1]} 5. d3 {[%clk 0:03:00.6]}
5... Ne7 {[%clk 0:03:01]} 6. Nbd2 {[%clk 0:02:58.4]} 6... f6 {[%clk 0:02:57.8]}
7. e5 {[%clk 0:02:55.6]} 7... Ng6 {[%clk 0:02:55.1]} 8. Qe2 {[%clk 0:02:52.5]}
8... d5 {[%clk 0:02:01.2]} 9. exd6 {[%clk 0:02:29.9]} 9... Bxd6 {[%clk
0:02:00.5]} 10. Ne4 {[%clk 0:02:23]} 10... Be7 {[%clk 0:01:47.7]} 11. h4 {[%clk
0:02:06.7]} 11... h5 {[%clk 0:01:40.4]} 12. Be3 {[%clk 0:01:56]} 12... e5 {[%clk
0:01:39.9]} 13. Nfd2 {[%clk 0:01:52.5]} 13... f5 {[%clk 0:01:32.6]} 14. Nxc5
{[%clk 0:00:50.3]} 14... f4 {[%clk 0:01:31.3]} 15. Qf3 {[%clk 0:00:50.5]} 15...
Qd5 {[%clk 0:01:16.5]} 16. Nde4 {[%clk 0:00:42.3]} 16... Bg4 {[%clk 0:01:13.9]}
17. c4 {[%clk 0:00:32.5]} 17... Qd8 {[%clk 0:00:57.7]} 18. Nf6+ {[%clk
0:00:27.5]} 18... gxf6 {[%clk 0:00:57.4]} 19. Qxc6+ {[%clk 0:00:27.6]} 19... Kf7
{[%clk 0:00:57.6]} 0-1

[Event "Early-Titled-Tuesday-Blitz-April-16-2024"]
[Site "Chess.com"]
[Date "2024.04.16"]
[Round "8"]
[White "maurovargas01"]
[Black "SoCalJuniorChess"]
[Result "0-1"]
[WhiteElo "1896"]
[BlackElo "2190"]
[TimeControl "180+1"]
[EndTime "9:29:59 PDT"]
[Termination "SoCalJuniorChess won by checkmate"]

1. e4 {[%clk 0:02:59.9]} 1... d5 {[%clk 0:02:59.3]} 2. e5 {[%clk 0:02:59.5]}
2... c5 {[%clk 0:02:54.1]} 3. f4 {[%clk 0:03:00.4]} 3... Nc6 {[%clk 0:02:48.1]}
4. Nf3 {[%clk 0:03:01.3]} 4... Bg4 {[%clk 0:02:46.2]} 5. Bb5 {[%clk 0:03:00.9]}
5... a6 {[%clk 0:02:41.8]} 6. Bxc6+ {[%clk 0:03:01.8]} 6... bxc6 {[%clk
0:02:42.6]} 7. O-O {[%clk 0:03:01.7]} 7... e6 {[%clk 0:02:41.2]} 8. d3 {[%clk
0:03:00]} 8... Rb8 {[%clk 0:02:34.3]} 9. Nc3 {[%clk 0:02:59.5]} 9... g6 {[%clk
0:02:33.9]} 10. b3 {[%clk 0:02:56.7]} 10... Bg7 {[%clk 0:02:31.4]} 11. Na4
{[%clk 0:02:56.1]} 11... c4 {[%clk 0:02:19]} 12. d4 {[%clk 0:02:45.8]} 12...
cxb3 {[%clk 0:02:18.5]} 13. axb3 {[%clk 0:02:37.8]} 13... Ne7 {[%clk 0:02:19.4]}
14. Nc5 {[%clk 0:02:34.2]} 14... O-O {[%clk 0:02:18.4]} 15. Rxa6 {[%clk
0:02:25.3]} 15... Ra8 {[%clk 0:02:17.1]} 16. Rxa8 {[%clk 0:02:16.7]} 16... Qxa8
{[%clk 0:02:18]} 17. Be3 {[%clk 0:02:08.9]} 17... Nf5 {[%clk 0:02:16.8]} 18. Bf2
{[%clk 0:02:04.9]} 18... Qa2 {[%clk 0:02:13]} 19. Qb1 {[%clk 0:01:54]} 19... Ra8
{[%clk 0:02:08.1]} 20. Nd2 {[%clk 0:01:33.4]} 20... Bf8 {[%clk 0:01:58]} 21. Nd7
{[%clk 0:01:26.1]} 21... Bb4 {[%clk 0:01:47.4]} 22. Nf6+ {[%clk 0:01:19.1]}
22... Kg7 {[%clk 0:01:47.5]} 23. Nxg4 {[%clk 0:01:12.3]} 23... Bxd2 {[%clk
0:01:47.5]} 24. g3 {[%clk 0:01:05.7]} 24... Bc3 {[%clk 0:01:47.3]} 25. Rd1
{[%clk 0:00:57]} 25... h5 {[%clk 0:01:35.6]} 26. Ne3 {[%clk 0:00:48.6]} 26...
Nxd4 {[%clk 0:01:31.5]} 27. Ng2 {[%clk 0:00:36.8]} 27... Nf3+ {[%clk 0:01:29.1]}
28. Kh1 {[%clk 0:00:33.5]} 28... Qxb1 {[%clk 0:01:28.2]} 29. Rxb1 {[%clk
0:00:32.8]} 29... Ra2 {[%clk 0:01:28.9]} 30. Rc1 {[%clk 0:00:25.3]} 30... Bd2
{[%clk 0:01:28.8]} 31. Rd1 {[%clk 0:00:13]} 31... Rxc2 {[%clk 0:01:28.2]} 32.
Ne3 {[%clk 0:00:12.8]} 32... Bxe3 {[%clk 0:01:27.2]} 33. Bxe3 {[%clk 0:00:12.6]}
33... Rxh2# {[%clk 0:01:27.8]} 0-1

[Event "Early-Titled-Tuesday-Blitz-April-16-2024"]
[Site "Chess.com"]
[Date "2024.04.16"]
[Round "8"]
[White "rionelG"]
[Black "Nutflush"]
[Result "1-0"]
[WhiteElo "2206"]
[BlackElo "2113"]
[TimeControl "180+1"]
[EndTime "9:30:03 PDT"]
[Termination "rionelG won by resignation"]

1. e4 {[%clk 0:03:00.9]} 1... c5 {[%clk 0:02:58]} 2. g3 {[%clk 0:02:57.6]} 2...
Nc6 {[%clk 0:02:57]} 3. Bg2 {[%clk 0:02:57.9]} 3... g6 {[%clk 0:02:57.5]} 4. Ne2
{[%clk 0:02:58.6]} 4... Bg7 {[%clk 0:02:58]} 5. c3 {[%clk 0:02:59.3]} 5... e5
{[%clk 0:02:56.5]} 6. d3 {[%clk 0:02:59.3]} 6... Nge7 {[%clk 0:02:56.3]} 7. Be3
{[%clk 0:02:59.7]} 7... d6 {[%clk 0:02:55.7]} 8. O-O {[%clk 0:02:59.2]} 8... O-O
{[%clk 0:02:55.6]} 9. f4 {[%clk 0:02:59.8]} 9... f5 {[%clk 0:02:54.7]} 10. fxe5
{[%clk 0:02:59.4]} 10... Nxe5 {[%clk 0:02:50.6]} 11. Nd2 {[%clk 0:02:59.9]}
11... Nxd3 {[%clk 0:02:44.7]} 12. Nc4 {[%clk 0:02:59.9]} 12... Ne5 {[%clk
0:02:13.2]} 13. Nxd6 {[%clk 0:02:59.2]} 13... fxe4 {[%clk 0:02:03.4]} 14. Rxf8+
{[%clk 0:02:48.4]} 14... Qxf8 {[%clk 0:02:02.2]} 15. Nxe4 {[%clk 0:02:35.9]}
15... Bg4 {[%clk 0:01:51.7]} 16. Bxc5 {[%clk 0:02:35.4]} 16... Nf3+ {[%clk
0:01:46.9]} 17. Kh1 {[%clk 0:02:33.9]} 17... Re8 {[%clk 0:01:31.8]} 18. Qb3+
{[%clk 0:02:31.6]} 18... Kh8 {[%clk 0:01:31.2]} 19. Rf1 {[%clk 0:02:30.7]} 19...
Qf5 {[%clk 0:01:20.9]} 20. Nd4 {[%clk 0:01:33.5]} 20... Nxd4 {[%clk 0:00:26.6]}
21. Bxd4 {[%clk 0:01:30.1]} 21... Qd5 {[%clk 0:00:22]} 22. Qxd5 {[%clk
0:01:11.1]} 22... Nxd5 {[%clk 0:00:22.9]} 23. Nd6 {[%clk 0:01:11.5]} 23... Rd8
{[%clk 0:00:03.2]} 24. Nf7+ {[%clk 0:01:11]} 1-0